Cogmind - Beta 11 @@@ ROGUE MODE // 2022.03.27 @ 16:09:41 Player: ZOT Result: Destroyed by X-57 Shotgunner with High-powered Shotgun Performance ------------- Evolutions (2) 1000 Regions Visited (4) 800 Robots Destroyed (21) 105 Value Destroyed (460) 460 Prototype IDs (5) 100 Alien Tech Used (0) 0 Bonus (200) 200 TOTAL SCORE: 2665 Bonus ------- Pacifist 200 Cogmind --------- Core Integrity 0/550 Matter 253/300 Energy 100/100 System Corruption 0% Temperature Cool (0) Movement Rolling (80) Location -8/Materials Parts ------- > --- POWER (1) -------- (None) > --- PROPULSION (3) --- Wheel > --- UTILITY (5) ------ Small Storage Unit Improved Signal Interpreter Targeting Computer Hacking Suite > --- WEAPON (2) ------- (None) > --- INVENTORY (8) ---- Deuterium Engine Carbon-fiber Leg Wheel Improved Heat Sink Backup Laser I Scythe Peak State ------------ > --- POWER ------------ Light Nuclear Core > --- PROPULSION ------- Carbon-fiber Leg Backup Propulsion I > --- UTILITY ---------- Small Storage Unit Improved Signal Interpreter Targeting Computer ECM Suite Hacking Suite > --- WEAPON ----------- Backup Laser I Pulse Rifle > --- INVENTORY -------- Ion Engine Deuterium Engine Wheel Wheel Improved Heat Sink Visual Processing Unit Scythe [Rating: 21] Favorites ----------- Power Light Nuclear Core Engine Light Ion Engine Power Core Light Nuclear Core Propulsion Improved Hover Unit Leg Carbon-fiber Leg Wheel Wheel Hover Unit Improved Hover Unit Flight Unit Improved Flight Unit Utility Small Storage Unit Device ECM Suite Storage Small Storage Unit Processor Targeting Computer Hackware Hacking Suite Weapon Assault Rifle Energy Gun Pulse Rifle Ballistic Gun Assault Rifle Build | -11 -10 -10 -9 -8 ------- Run | Scr Mat Min Mat Mat Slots Evolved 4 | . . . 2 2 Power . | . . . . . Propulsion 1 | . . . . 1 Utility 3 | . . . 2 1 Weapon . | . . . . . Parts Attached 38 | 9 2 . 7 20 Power 6 | 2 . . 2 2 Engine 4 | 2 . . 2 . Core 2 | . . . . 2 Reactor . | . . . . . Propulsion 15 | 3 . . 2 10 Treads . | . . . . . Leg 2 | . . . . 2 Wheel 4 | 3 . . . 1 Hover 8 | . . . 2 6 Flight 1 | . . . . 1 Utility 11 | 2 2 . 3 4 Device 3 | . 1 . 1 1 Storage 4 | 2 1 . 1 . Processor 3 | . . . 1 2 Hackware 1 | . . . . 1 Protection . | . . . . . Artifact . | . . . . . Weapon 6 | 2 . . . 4 Energy Gun 4 | . . . . 4 Energy Cannon . | . . . . . Ballistic Gun 2 | 2 . . . . Ballistic Cannon . | . . . . . Launcher . | . . . . . Special Weapon . | . . . . . Impact Weapon . | . . . . . Slashing Weapon . | . . . . . Piercing Weapon . | . . . . . Special Melee Weapon . | . . . . . Unidentified Prototypes 1 | . . . . 1 Parts Lost 17 | . . . 1 16 Power 2 | . . . . 2 Propulsion 6 | . . . 1 5 Utility 4 | . . . . 4 Weapon 5 | . . . . 5 Highest Loss Streak 8 | . . . 1 8 To Critical Strikes . | . . . . . Average Slot Usage (%) 77 | . 100 100 92 68 Engine 4 | . 14 14 11 1 Core 3 | . . . . 4 Leg 2 | . . . . 3 Wheel 2 | . 28 28 1 . Hover 9 | . . . 19 6 Device 12 | . 14 14 20 9 Storage 9 | . 14 14 11 9 Processor 13 | . . . 6 17 Hackware 4 | . . . . 6 Energy Gun 4 | . . . . 7 Ballistic Gun 8 | . 28 28 22 1 Naked Turns . | . . . . . Heaviest Build 18 | 12 18 18 18 15 Greatest Support 20 | 20 20 20 20 19 Greatest Overweight (x) 4 | 1 . . . 4 Average Overweight (x) . | . . . . . Largest Inventory Capacity 10 | 8 10 10 10 8 Average Capacity 8 | 6 9 10 8 8 Most Carried 8 | 7 3 3 8 8 Average Carried 6 | 3 2 3 6 6 Final Capacity 10 | 8 10 10 8 8 Final Carried 8 | 2 3 3 8 6 Class Distribution -------------------- 100% | Mutant Dominant Class ---------------- Mutant | -10/Materials Mutant | -10/Mines Mutant | -9/Materials Mutant | -8/Materials Resources | -11 -10 -10 -9 -8 ----------- Run | Scr Mat Min Mat Mat Matter Collected 618 | 229 . . 165 224 Remotely . | . . . . . Salvage Created 611 | . . . 281 330 Parts 43 | . . . 23 20 Haulers Intercepted . | . . . . . Recyclers Shooed 2 | . . . . 2 Parts Field Recycled . | . . . . . Retrieved Matter . | . . . . . Parts Self-Destructed . | . . . . . Prevented . | . . . . . Kills | -11 -10 -10 -9 -8 ------- Run | Scr Mat Min Mat Mat Combat Hostiles Destroyed 18 | . . . 9 9 Guns 18 | . . . 9 9 Classes Destroyed 6 | . . . 4 2 Worker 2 | . . . 1 1 Recycler 1 | . . . 1 . Swarmer 10 | . . . 7 3 Grunt 4 | . . . 2 2 Sentry 3 | . . . . 3 Hunter 1 | . . . . 1 Best Kill Streak 5 | . . . 5 4 Combat Bots Only 4 | . . . 4 3 Max Kills in Single Turn 1 | . . . 1 1 Gunslinging . | . . . . . Exploded . | . . . . . Melee . | . . . . . Uniques/NPCs Destroyed . | . . . . . Combat | -11 -10 -10 -9 -8 -------- Run | Scr Mat Min Mat Mat Damage Taken 1715 | . . . 318 1397 Core 599 | . . . 48 551 Absorbed by Shields . | . . . . . Regen/Repaired (Parts) 171 | . . . . 171 Core Remaining (%) 96 | 100 . 100 88 . Volleys Fired 88 | . . . 25 63 Largest 2 | . . . 2 2 Hottest 63 | . . . 40 63 Shots Fired 118 | . . . 50 68 Gun 118 | . . . 50 68 Cannon . | . . . . . Launcher . | . . . . . Special . | . . . . . Kinetic 60 | . . . 50 10 Thermal 58 | . . . . 58 Explosive . | . . . . . Electromagnetic . | . . . . . Robot Hit Streak 16 | . . . 8 16 Robot Miss Streak 3 | . . . 3 3 Penetration Max . | . . . . . Secondary Targets 1 | . . . 1 . Max Gunslinging Chain 1 | . . . 1 . Shots Hit Robots 80 | . . . 32 48 Core Hits 34 | . . . 13 21 Critical Kills . | . . . . . Critical Parts Destroyed 1 | . . . 1 . Critical Strikes 2 | . . . 1 1 Burn 1 | . . . . 1 Destroy 1 | . . . 1 . Melee Attacks . | . . . . . Impact . | . . . . . Slashing . | . . . . . Piercing . | . . . . . Sneak Attacks . | . . . . . Combat Hostiles . | . . . . . Follow-up Attacks . | . . . . . Damage Inflicted 1136 | . . . 401 735 Guns 1124 | . . . 401 723 Cannons . | . . . . . Explosions . | . . . . . Melee . | . . . . . Ramming 12 | . . . . 12 Kinetic 489 | . . . 401 88 Thermal 635 | . . . . 635 Explosive . | . . . . . Electromagnetic . | . . . . . Impact . | . . . . . Slashing . | . . . . . Piercing . | . . . . . Highest Corruption . | . . . . . Average Corruption . | . . . . . Corruption Purged . | . . . . . Corruption Blocked . | . . . . . Overload Shots . | . . . . . Overflow Damage . | . . . . . Projectiles . | . . . . . Explosions . | . . . . . Melee . | . . . . . Knockbacks 1 | . . . . 1 Impact 1 | . . . . 1 Kinetic . | . . . . . Secondary . | . . . . . Self-Inflicted Damage 6 | . . . . 6 Shots . | . . . . . Rammed 2 | . . . . 2 Targets Rammed 2 | . . . . 2 Kicked . | . . . . . Crushed . | . . . . . Highest Temperature 161 | . . . . 161 Average Temperature 53 | . . . . 53 Received Heat Transfer 378 | . . . 36 342 Siege Activations . | . . . . . Robots Corrupted . | . . . . . Combat Hostiles . | . . . . . Parts Fried . | . . . . . Impact Corruptions . | . . . . . Robots Melted . | . . . . . Combat Hostiles . | . . . . . Parts Melted 3 | . . . . 3 Heat Transferred 1580 | . . . . 1580 Parts Sabotaged . | . . . . . Parts Stolen . | . . . . . Parts Stripped . | . . . . . Power Chain Reactions . | . . . . . Missiles Intercepted . | . . . . . Alert | -11 -10 -10 -9 -8 ------- Run | Scr Mat Min Mat Mat Peak Influence 278 | . . . 278 217 Initial 117 | . . . . 117 Average 84 | . . . 63 108 Maximum Alert Level 1 | . . . 1 1 Low Security (%) 96 | 100 100 100 89 99 Level 1 3 | . . . 10 . Level 2 . | . . . . . Level 3 . | . . . . . Level 4 . | . . . . . Level 5 . | . . . . . High Security . | . . . . . Max Security . | . . . . . Squads Dispatched 4 | . . . . 4 Investigation . | . . . . . Extermination . | . . . . . Reinforcement 3 | . . . . 3 Assault . | . . . . . Garrison 1 | . . . . 1 Intercept . | . . . . . Searches Triggered . | . . . . . Construction Impeded . | . . . . . Haulers Reinforced . | . . . . . Active Scanning Responses . | . . . . . Cargo Convoy Interrupts . | . . . . . Stealth | -11 -10 -10 -9 -8 --------- Run | Scr Mat Min Mat Mat Distress Signals 5 | . 1 . 1 3 Communications Jammed . | . . . . . Distress Signals . | . . . . . Times Spotted 46 | . 3 . 14 29 Peak Tracking Total 9 | . 5 . 9 7 Tactical Retreats 7 | . . . 2 5 Traps | -11 -10 -10 -9 -8 ------- Run | Scr Mat Min Mat Mat Traps Triggered . | . . . . . Indirectly . | . . . . . Trap Hack Attempts . | . . . . . Triggered . | . . . . . Disarmed . | . . . . . Reprogrammed . | . . . . . Reused . | . . . . . Traps Extracted . | . . . . . Installed . | . . . . . Triggered . | . . . . . Machines | -11 -10 -10 -9 -8 ---------- Run | Scr Mat Min Mat Mat Machines Disabled . | . . . . . Max in Single Turn . | . . . . . Machines Sabotaged . | . . . . . Garrisons Compromised . | . . . . . Overloaded Fab Kills . | . . . . . Hacking | -11 -10 -10 -9 -8 --------- Run | Scr Mat Min Mat Mat Machines Accessed 8 | . 1 . 3 4 Terminals 4 | . . . 3 1 Fabricators . | . . . . . Repair Stations 2 | . . . . 2 Recycling Units 1 | . 1 . . . Scanalyzers 1 | . . . . 1 Garrison Access . | . . . . . Total Hacks 31 | . 3 . 8 20 Successful 22 | . 1 . 2 19 Failed 9 | . 2 . 6 1 Catastrophic 5 | . 1 . 3 1 Database Lockouts . | . . . . . Manual 3 | . . . 2 1 Terminals 13 | . . . 8 5 Fabricators . | . . . . . Repair Stations 13 | . . . . 13 Recycling Units 3 | . 3 . . . Scanalyzers 2 | . . . . 2 Garrison Access . | . . . . . Terminal Hacks 6 | . . . 2 4 Record 2 | . . . . 2 Prototype ID Bank 2 | . . . 1 1 Alert Level 1 | . . . . 1 Maintenance Status 1 | . . . 1 . Fabricator Hacks . | . . . . . Repair Station Hacks 13 | . . . . 13 Scan Component 6 | . . . . 6 Repair 5 | . . . . 5 Refit 2 | . . . . 2 Recycling Unit Hacks 1 | . 1 . . . Report Inventory 1 | . 1 . . . Scanalyzer 2 | . . . . 2 Insert Component 1 | . . . . 1 Analyze 1 | . . . . 1 Garrison Access Hacks . | . . . . . Unauthorized Hacks . | . . . . . Terminals . | . . . . . Fabricators . | . . . . . Repair Stations . | . . . . . Recycling Units . | . . . . . Scanalyzers . | . . . . . Garrison Access . | . . . . . Data Cores Recovered . | . . . . . Used . | . . . . . Hacking Detections 7 | . 1 . 3 3 Full Trace Events . | . . . . . Feedback Events . | . . . . . Feedback Blocked . | . . . . . Robot Schematics Acquired . | . . . . . Robots Built . | . . . . . Authchips . | . . . . . Time . | . . . . . Total Robot Build Rating . | . . . . . Part Schematics Acquired 1 | . . . . 1 Parts Built . | . . . . . Authchips . | . . . . . Time . | . . . . . Total Part Build Rating . | . . . . . Parts Repaired 5 | . . . . 5 Time 172 | . . . . 172 Parts Recycled . | . . . . . Recycled Matter . | . . . . . Retrieved Matter . | . . . . . Retrieved Components . | . . . . . Parts Scanalyzed 1 | . . . . 1 Part Schematics Acquired 1 | . . . . 1 Parts Damaged . | . . . . . Bothacking | -11 -10 -10 -9 -8 ------------ Run | Scr Mat Min Mat Mat Used RIF Installer . | . . . . . Robots Hacked . | . . . . . Non-combat . | . . . . . Combat . | . . . . . Robot Hacks Applied . | . . . . . Relay Couplers Released . | . . . . . Fabnet Peak Effective % . | . . . . . Robots Rewired . | . . . . . Allies Hacked . | . . . . . Hacks Repelled . | . . . . . Allies | -11 -10 -10 -9 -8 -------- Run | Scr Mat Min Mat Mat Total Allies . | . . . . . Largest Group . | . . . . . Highest-Rated Group . | . . . . . Highest-Rated Ally . | . . . . . Total Orders . | . . . . . Ally Attacks . | . . . . . Total Damage . | . . . . . Kills . | . . . . . Allies Corrupted . | . . . . . Allies Melted . | . . . . . Intel | -11 -10 -10 -9 -8 ------- Run | Scr Mat Min Mat Mat Robot Analysis Total . | . . . . . Derelict Logs Recovered . | . . . . . Drone Launches . | . . . . . Drone Recoveries . | . . . . . Exploration | -11 -10 -10 -9 -8 ------------- Run | Scr Mat Min Mat Mat Turns Passed 1363 | 60 55 43 345 860 Spaces Moved 923 | 35 64 54 313 457 Core 101 | 18 . . . 83 Treads . | . . . . . Legs 183 | . . . . 183 Wheels 185 | 17 64 54 15 35 Hover 454 | . . . 298 156 Flight . | . . . . . Fastest Speed 50 | 50 80 80 56 50 Average Speed 82 | 80 80 80 57 99 Slowest Speed 250 | 100 80 80 80 250 Overloaded Moves . | . . . . . Propulsion Burnouts . | . . . . . Robots Hopped . | . . . . . Cave-ins Triggered . | . . . . . Exploration Rate (%) 26 | 4 19 22 38 47 Regions Visited 4 Branch Regions 1 Pre-discovered Areas . | . . . . . Known Exits Taken . | . . . . . Unknown Exits Taken 4 | 1 1 1 1 . Scrap Searched . | . . . . . Spaces Dug . | . . . . . Terrain Destroyed . | . . . . . Melee . | . . . . . Projectile . | . . . . . AOE . | . . . . . Terrain Rammed . | . . . . . Walls Destroyed . | . . . . . Machines Disabled . | . . . . . Actions | -11 -10 -10 -9 -8 --------- Run | Scr Mat Min Mat Mat Total 1407 | 67 67 53 426 794 Wait 316 | 14 . . 71 231 Move 919 | 34 63 53 312 457 Hop . | . . . . . Pick Up 33 | 8 2 . 9 14 Fast Attach 3 | . . . . 3 Attach 28 | 8 1 . 3 16 Detach 4 | 2 . . . 2 Swap 7 | 1 1 . 4 1 Drop 7 | . . . 2 5 Fire 88 | . . . 25 63 Melee . | . . . . . Ram 2 | . . . . 2 Kick . | . . . . . Crush . | . . . . . Escape Stasis . | . . . . . Rewire . | . . . . . Trap . | . . . . . Miscellaneous . | . . . . . Route ------- -11/Scrapyard -10/Materials -10/Mines -9/Materials -8/Materials History --------- Turn | Location | Event 14 | -11/Scrapyard | Discovered new exit (range 16) 61 | -11/Scrapyard | Entered Materials 111 | -10/Materials | Discovered new exit (range 8) 116 | -10/Materials | Entered Mines 147 | -10/Mines | Discovered new exit (range 16) 159 | -10/Mines | Entered Materials 159 | -9/Materials | Evolved 2 slots: Utility x2 303 | -9/Materials | Build established: Mutant 498 | -9/Materials | Discovered new exit (range 10) 504 | -9/Materials | Entered another Materials area 504 | -8/Materials | Evolved 2 slots: Propulsion x1, Utility x1 553 | -8/Materials | Repaired Imp. Hover Unit 697 | -8/Materials | Core integrity fell below 50% 709 | -8/Materials | Lost 8 parts (1p2n3u2w) 1045 | -8/Materials | Repaired Lgt. Nuclear Core 1085 | -8/Materials | Repaired Carbon-fiber Leg 1127 | -8/Materials | Repaired Pulse Rifle 1234 | -8/Materials | Repaired Hover Unit 1294 | -8/Materials | Garrison activated, responded to threat 1317 | -8/Materials | Core integrity fell below 20% 1364 | -8/Materials | Destroyed by X-57 Shotgunner with High-powered Shotgun Last Messages --------------- 01272_ Destabilizing: Short circuit. 01286_ Hover Unit destroyed. 01294_ G-47 Trooper calls for garrison reinforcements. 01294_ ALERT: Activating Garrison Access M001. 01296_ Hover Unit destroyed. 01296_ Critical hit (Burn: +37). 01298_ Lgt. Nuclear Core destroyed. 01304_ Imp. Heat Sink melted. 01304_ G-47 Trooper destroyed. 01306_ Acquired 45 matter. 01306_ Critical hit (Burn: +37). 01308_ Broken Hover Unit destroyed. 01311_ ALERT: Suspicious intruders detected, dispatching Specialist reinforcements to area. 01312_ Critical hit (Burn: +37). 01314_ G-47 Trooper destroyed. 01330_ ECM Suite destroyed. 01347_ S-10 Pest destroyed. 01357_ Pulse Rifle destroyed. 01361_ X-57 Shotgunner destroyed. Map ----- +----------------------------------------------------+ | ####### ########????# #????# ??????????? | | ###???# #????# #????? ??????????? | | !#???# +????# #?????####/###?????????? | | #???# #????# #????????? ???????????? | | " ######+###### #????# /????????? ???????????? | | " ## ! #?? #????# ??????????? ??????????? | | " ## """ #????????# ???????????????????????? | | " ## """"" #????????? ???????????????????????? | | ## ! """"" #???????????????????????????????????? | | #### """"" #????????????#??????????????????????? | | + """ #????????? ##????????????????????? | | #### #???????? ?????????????????????? | | #??#! !#???????? ?????????????????????? | | #??#####+#######?????? ??????????????????????? | | #???# #?????? ??????????????????????? | | ##### #??????# #??????????????????????? | | %= #?????## #??????????????????????? | | ######/##### +?????#" #??????????????????????? | | ????! ??# #??????T #??????????????????????? | | ?? !! ## #??????" #??????????????????????? | | # ## ##?????# #??????????????????????? | | # """ """ # #######o #??????????????????????? | | # """ """ # % #????"?????????????????? | | """ """ # Y #??""""????????????????? | | # # x # """"" #?????????????? | | #?? # #######gg@/ =#?????????????? | | ???#####??#######?????#! #########??????????????? | | ??????????????????????# #??????????????????????? | | ??????????????????????# #??????????????????????? | | ??????????????????????# #??????????????????????? | | ??????????????????????# #??????????????????????? | | ??????????????????????# #??????????????????????? | | ??????????????????????# t#??????????????????????? | | ??????????????????????# #??????????????????????? | | ??????????????????????# #??????????????????????? | | ??????????????????????# #??????????????????????? | | ?????????????????????# #?????????????????????? | | ?????????????????????# ????????????????????? | | ?????????????????????# ???????????????????? | | ?????????????????????#= ??????????????????? | | ?????????????????????# #####?????????????????? | | ?????????????????????#######?????????????????????? | | ?????????????????????????????????????????????????? | | ?????????????????????????????????????????????????? | | ?????????????????????????????????????????????????? | | ?????????????????????????????????????????????????? | | ?????????????????????????????????????????????????? | | ?????????????????????????????????????????????????? | | ?????????????????????????????????????????????????? | | ?????????????????????????????????????????????????? | +----------------------------------------------------+ Best States ------------- Heat Dissipation 31 Energy Generation 14 Energy Capacity 250 Matter Stores 253 Matter Capacity 300 Sight Range 16 Terrain Scan Density 10 ECM Strength 1 Additional Mass Support 6 Evasion (%) 55 Targeting Accuracy 10 Offensive Hacking 10 Item Schematics ----------------- Deuterium Engine | -8/Materials | Scanalyzed Robot Schematics ------------------ None Fabricated ------------ Nothing Alien Tech Used ----------------- None Achievements -------------- None Challenges ------------ None Game ------ Seed MyomerCarbideEdition Manual? 0 Play Time 00:30:57 Cumulative 25.8 hours Start 2022.03.27 @ 15:38:31 End 2022.03.27 @ 16:09:41 Sessions 1 Manual Loads 0 Difficulty Rogue Special Mode None Game No. 28 Rogue 28 Adventurer 0 Explorer 0 Win Type - Total 0 Types 0/0/0/0/0/0/0/0/0 Lore% 7 Gallery% 25 Achievement% 18 Wizard Run 0 Options --------- ASCII 0 Keyboard 0 Movement Mouse Keybinds 0 Fullscreen 1 Font 24/Smallcaps Map View 76x50 Tactical HUD 1 Map Filters NONE Filters NONE Steam 1 RUN: 32db041c-254c-4229-b44c-9644d21cc9e6